Workbook

Sheet ord
A1: ** RUN 4.5 (18.01.01) ** CAMMAG CAMMAG CAMMAG CAMMAG ** RUN 4.5 **
A2: SETUP: d2 setup for Tanabe Sugano | I2: Energy gaps /B are:
A3: INPUT DATA for RUN : | I3: E(1S) - E(3F)/B = (22B + 7C)/B = 22 + 7 * 4.42 = 52.94
A4: TITL d2 for Tanabe Sugano | I4: E(1G) - E(3F)/B = (12B + 2C)/B = 12 + 2 * 4.42 = 20.84
A5: CALC 1 | I5: E(1D) - E(3F)/B = (5B + 2C)/B = 5 + 2 * 4.42 = 13.84
A6: ZETA 0.0 | I6: E(3P) - E(3F)/B = (15B)/B = 15
A7: B 886 | F7: C/B= | G7: =3916/886 -> 4.41986456 | I7: E(3F) - E(3F)/B = 0
A8: C 3916
A9: LIST 1 1 0 0 0 0 0 0 1 0 0 | I9: E1/B=-7.5+DB/2+1/2*F | L9: F=SQRT(225+DB^2+18DB)
A10: SYML 32 0 0 | I10: E2/B=-7.5+1.5DB+1/2*F
I11: E3/B=F
A13: delta/B | B13: 3T1g(F) | C13: 3T2g(F) | D13: 3A2g(F) | E13: 1T2g(D) | F13: 1Eg(D) | G13: 3T1g(P) | H13: 1T2g(G) | I13: 1Eg(G) | J13: 1T1g(G) | K13: 1A1g(G) | L13: 1A1g(S) | M13: D/B | N13: 3T2g(F)-Th | O13: 3A2g(F)-Th | P13: 3T1g(P)-Th
A14: 0 | B14: 0 | C14: 0 | D14: 0 | E14: 13.84 | F14: 13.84 | G14: 15 | H14: 20.84 | I14: 20.84 | J14: 20.84 | K14: 20.84 | L14: 52.94 | M14: 0 | N14: 0 | O14: 0 | P14: 15
A15: 0.609480813 | B15: 0 | C15: 0.491451467 | D15: 1.10093228 | E15: 14.0568397 | F15: 14.3653499 | G15: 15.3734221 | H15: 20.9960406 | I15: 21.2970124 | J15: 21.3311806 | K15: 21.441886 | L15: 53.319798 | M15: 0.2 | N15: =-7.5+M15/2+(SQRT(225+M15*M15+18*M15))/2 -> 0.1604232686 | O15: =-7.5+1.5*M15+(SQRT(225+M15*M15+18*M15))/2 -> 0.3604232686 | P15: =SQRT(225+M15*M15+18*M15) -> 15.12084654
A16: 1.21896163 | B16: 0 | C16: 0.990267494 | D16: 2.20922912 | E16: 14.254684 | F16: 14.7920722 | G16: 15.7615722 | H16: 21.1863465 | I16: 21.8679199 | J16: 21.8299966 | K16: 22.0287291 | L16: 53.7305858 | M16: 0.4 | N16: =-7.5+M16/2+(SQRT(225+M16*M16+18*M16))/2 -> 0.3216796049 | O16: =-7.5+1.5*M16+(SQRT(225+M16*M16+18*M16))/2 -> 0.7216796049 | P16: =SQRT(225+M16*M16+18*M16) -> 15.24335921
A17: 1.82844244 | B17: 0 | C17: 1.49591648 | D17: 3.32435892 | E17: 14.4326445 | F17: 15.1255564 | G17: 16.1633894 | H17: 21.4102032 | I17: 22.5457336 | J17: 22.3356456 | K17: 22.5993488 | L17: 54.1712652 | M17: 0.6 | N17: 0.4837490849 | O17: 1.083749085 | P17: 15.36749817
A18: 2.43792325 | B18: 0 | C18: 2.00790181 | D18: 4.44582506 | E18: 14.5907449 | F18: 15.3783047 | G18: 16.5778792 | H18: 21.6665926 | I18: 23.316956 | J18: 22.8476309 | K18: 23.1529605 | L18: 54.641623 | M18: 0.8 | N18: 0.6466121627 | O18: 1.446612163 | P18: 15.49322433
A19: 3.04740406 | B19: 0 | C19: 2.52575959 | D19: 5.57316366 | E19: 14.7295903 | F19: 15.5655745 | G19: 17.0041151 | H19: 21.9539842 | I19: 24.1654041 | J19: 23.3654887 | K19: 23.6889176 | L19: 55.1413826 | M19: 1 | N19: 0.8102496759 | O19: 1.810249676 | P19: 15.62049935
A20: 3.65688488 | B20: 0 | C20: 3.04906095 | D20: 6.70594582 | E20: 14.8502585 | F20: 15.7020079 | G20: 17.441237 | H20: 22.2704368 | I20: 25.0755711 | J20: 23.8887901 | K20: 24.2067088 | L20: 55.6701941 | M20: 1.2 | N20: 0.974642849 | O20: 2.174642849 | P20: 15.7492857
A21: 4.26636569 | B21: 0 | C21: 3.57740519 | D21: 7.84377088 | E21: 14.9541625 | F21: 15.799956 | G21: 17.8884447 | H21: 22.6137404 | I21: 26.0343126 | J21: 24.4171343 | K21: 24.7059582 | L21: 56.2276343 | M21: 1.4 | N21: 1.139773297 | O21: 2.539773297 | P21: 15.87954659
A22: 4.8758465 | B22: 0 | C22: 4.11042438 | D22: 8.98627088 | E22: 15.0429052 | F22: 15.8691117 | G22: 18.3450023 | H22: 22.9815564 | I22: 27.0311964 | J22: 24.9501535 | K22: 25.1864266 | L22: 56.8132032 | M22: 1.6 | N22: 1.305623024 | O22: 2.905623024 | P22: 16.01124605
A23: 5.48532731 | B23: 0 | C23: 4.64777765 | D23: 10.133105 | E23: 15.1181569 | F23: 15.9168002 | G23: 18.8102291 | H23: 23.3715293 | I23: 28.0582144 | J23: 25.4875068 | K23: 25.648009 | L23: 57.4263284 | M23: 1.8 | N23: 1.472174428 | O23: 3.272174428 | P23: 16.14434886
A24: 6.09480813 | B24: 0 | C24: 5.18915237 | D24: 11.2839605 | E24: 15.1815621 | F24: 15.948465 | G24: 19.2834966 | H24: 23.7813916 | I24: 29.109298 | J24: 26.0288815 | K24: 26.0907201 | L24: 58.0663657 | M24: 2 | N24: 1.639410298 | O24: 3.639410298 | P24: 16.2788206
A25: 6.70428894 | B25: 0 | C25: 5.73425847 | D25: 12.4385474 | E25: 15.2346693 | F25: 15.9681309 | G25: 19.764228 | H25: 24.2090169 | I25: 30.1798442 | J25: 26.5739876 | K25: 26.5146919 | L25: 58.7326061 | M25: 2.2 | N25: 1.807313811 | O25: 4.007313811 | P25: 16.41462762
A26: 7.31376975 | B26: 0 | C26: 6.2828307 | D26: 13.5966005 | E26: 15.2788928 | F26: 15.9787743 | G26: 20.2518905 | H26: 24.652456 | I26: 31.2663454 | J26: 27.1225598 | K26: 26.9201614 | L26: 59.424281 | M26: 2.4 | N26: 1.975868534 | O26: 4.375868534 | P26: 16.55173707
A27: 7.92325056 | B27: 0 | C27: 6.83462415 | D27: 14.7578747 | E27: 15.3154989 | F27: 15.9826106 | G27: 20.7459977 | H27: 25.1099571 | I27: 32.3660959 | J27: 27.6743533 | K27: 27.3074582 | L27: 60.1405711 | M27: 2.6 | N27: 2.145058418 | O27: 4.745058418 | P27: 16.69011684
A28: 8.53273138 | B28: 0 | C28: 7.38941422 | D28: 15.9221456 | E28: 15.3456005 | F28: 15.9813002 | G28: 21.2460982 | H28: 25.579956 | I28: 33.4769876 | J28: 28.2291433 | K28: 27.6769932 | L28: 60.8806174 | M28: 2.8 | N28: 2.314867795 | O28: 5.114867795 | P28: 16.82973559
A29: 9.14221219 | B29: 0 | C29: 7.94699549 | D29: 17.0892077 | E29: 15.3701614 | F29: 15.9760948 | G29: 21.7517788 | H29: 26.0610745 | I29: 34.5973544 | J29: 28.7867246 | K29: 28.0292472 | L29: 61.6435248 | M29: 3 | N29: 2.485281374 | O29: 5.485281374 | P29: 16.97056275
A30: 9.751693 | B30: 0 | C30: 8.50717607 | D30: 18.2588691 | E30: 15.3900169 | F30: 15.967947 | G30: 22.2626591 | H30: 26.5521005 | I30: 35.7258634 | J30: 29.3469052 | K30: 28.3647551 | L30: 62.4283781 | M30: 3.2 | N30: 2.65628424 | O30: 5.85628424 | P30: 17.11256848
A31: 10.3611738 | B31: 0 | C31: 9.06978217 | D31: 19.430956 | E31: 15.4058758 | F31: 15.9575858 | G31: 22.7783905 | H31: 27.0519729 | I31: 36.8614368 | J31: 29.9095113 | K31: 28.6840971 | L31: 63.2342472 | M31: 3.4 | N31: 2.827861844 | O31: 6.227861844 | P31: 17.25572369
A32: 10.9706546 | B32: 0 | C32: 9.63465237 | D32: 20.605307 | E32: 15.4183465 | F32: 15.9455734 | G32: 23.298649 | H32: 27.5597607 | I32: 38.0031896 | J32: 30.4743815 | K32: 28.987886 | L32: 64.0601986 | M32: 3.6 | N32: 3 | O32: 6.6 | P32: 17.4
A33: 11.5801354 | B33: 0 | C33: 10.2016377 | D33: 21.7817731 | E33: 15.4279436 | F33: 15.9323442 | G33: 23.82314 | H33: 28.0746535 | I33: 39.1503894 | J33: 31.0413668 | K33: 29.2767562 | L33: 64.9052991 | M33: 3.8 | N33: 3.17268488 | O33: 6.97268488 | P33: 17.54536976
A34: 12.1896163 | B34: 0 | C34: 10.7706016 | D34: 22.9602178 | E34: 15.4351072 | F34: 15.9182381 | G34: 24.351588 | H34: 28.5959391 | I34: 40.3024244 | J34: 31.6103307 | K34: 29.5513567 | L34: 65.7686287 | M34: 4 | N34: 3.345903006 | O34: 7.345903006 | P34: 17.69180601
A35: 12.7990971 | B35: 0 | C35: 11.3414199 | D35: 24.1405169 | E35: 15.4402065 | F35: 15.9035203 | G35: 24.8837427 | H35: 29.1229944 | I35: 41.4587777 | J35: 32.181149 | K35: 29.8123397 | L35: 66.649281 | M35: 4.2 | N35: 3.519641248 | O35: 7.719641248 | P35: 17.8392825
A36: 13.4085779 | B36: 0 | C36: 11.913974 | D36: 25.3225519 | E36: 15.4435576 | F36: 15.8883973 | G36: 25.4193702 | H36: 29.6552709 | I36: 42.6190079 | J36: 32.7537032 | K36: 30.0603567 | L36: 67.5463725 | M36: 4.4 | N36: 3.693886813 | O36: 8.093886813 | P36: 17.98777363
A37: 14.0180587 | B37: 0 | C37: 12.4881569 | D37: 26.5062156 | E37: 15.4454278 | F37: 15.8730339 | G37: 25.9582551 | H37: 30.1922867 | I37: 43.7827393 | J37: 33.327886 | K37: 30.2960497 | L37: 68.4590451 | M37: 4.6 | N37: 3.868627239 | O37: 8.468627239 | P37: 18.13725448
A38: 14.6275395 | B38: 0 | C38: 13.0638702 | D38: 27.6914097 | E38: 15.446044 | F38: 15.8575564 | G38: 26.5002009 | H38: 30.7336151 | I38: 44.9496422 | J38: 33.9035993 | K38: 30.5200485 | L38: 69.3864718 | M38: 4.8 | N38: 4.043850392 | O38: 8.843850392 | P38: 18.28770078
A39: 15.2370203 | B39: 0 | C39: 13.6410203 | D39: 28.8780406 | E39: 15.4455993 | F39: 15.8420655 | G39: 27.0450203 | H39: 31.2788792 | I39: 46.1194345 | J39: 34.4807494 | K39: 30.7329661 | L39: 70.3278555 | M39: 5 | N39: 4.219544457 | O39: 9.219544457 | P39: 18.43908891
A40: 15.8465011 | B40: 0 | C40: 14.2195237 | D40: 30.0660248 | E40: 15.4442596 | F40: 15.82664 | G40: 27.5925463 | H40: 31.8277449 | I40: 47.2918657 | J40: 35.0592528 | K40: 30.9353962 | L40: 71.2824323 | M40: 5.2 | N40: 4.39569793 | O40: 9.59569793 | P40: 18.59139586
A41: 16.4559819 | B41: 0 | C41: 14.7993002 | D41: 31.2552822 | E41: 15.4421637 | F41: 15.8113431 | G41: 28.1426196 | H41: 32.3799142 | I41: 48.4667167 | J41: 35.6390293 | K41: 31.1279086 | L41: 72.249474 | M41: 5.4 | N41: 4.572299611 | O41: 9.972299611 | P41: 18.74459922
A42: 17.0654628 | B42: 0 | C42: 15.3802777 | D42: 32.4457404 | E42: 15.4394312 | F42: 15.7962201 | G42: 28.6950926 | H42: 32.9351196 | I42: 49.6437935 | J42: 36.2200068 | K42: 31.3110497 | L42: 73.2282867 | M42: 5.6 | N42: 4.749338601 | O42: 10.3493386 | P42: 18.8986772
A43: 17.6749436 | B43: 0 | C43: 15.9623871 | D43: 33.6373307 | E43: 15.4361659 | F43: 15.7813093 | G43: 29.2498307 | H43: 33.4931242 | I43: 50.8229233 | J43: 36.8021163 | K43: 31.4853431 | L43: 74.2182122 | M43: 5.8 | N43: 4.926804291 | O43: 10.72680429 | P43: 19.05360858
A44: 18.2844244 | B44: 0 | C44: 16.5455655 | D44: 34.8299898 | E44: 15.4324526 | F44: 15.7666377 | G44: 29.8067077 | H44: 34.0537133 | I44: 52.0039526 | J44: 37.3852946 | K44: 31.6512867 | L44: 75.2186264 | M44: 6 | N44: 5.104686356 | O44: 11.10468636 | P44: 19.20937271
A45: 18.8939052 | B45: 0 | C45: 17.1297551 | D45: 36.0236603 | E45: 15.4283691 | F45: 15.7522257 | G45: 30.365605 | H45: 34.6166941 | I45: 53.1867415 | J45: 37.9694842 | K45: 31.809351 | L45: 76.2289402 | M45: 6.2 | N45: 5.28297475 | O45: 11.48297475 | P45: 19.3659495
A46: 19.503386 | B46: 0 | C46: 17.7148995 | D46: 37.2182856 | E46: 15.4239774 | F46: 15.7380892 | G46: 30.9264131 | H46: 35.1818939 | I46: 54.371167 | J46: 38.5546287 | K46: 31.9599842 | L46: 77.2485959 | M46: 6.4 | N46: 5.461659695 | O46: 11.86165969 | P46: 19.52331939
A47: 20.1128668 | B47: 0 | C47: 18.3009481 | D47: 38.4138149 | E47: 15.419333 | F47: 15.7242381 | G47: 31.4890305 | H47: 35.7491558 | I47: 55.5571163 | J47: 39.1406772 | K47: 32.1036072 | L47: 78.27707 | M47: 6.6 | N47: 5.64073168 | O47: 12.24073168 | P47: 19.68146336
A48: 20.7223476 | B48: 0 | C48: 18.8878544 | D48: 39.610202 | E48: 15.4144842 | F48: 15.7106795 | G48: 32.0533612 | H48: 36.3183352 | I48: 56.7444876 | J48: 39.7275835 | K48: 32.2406208 | L48: 79.3138691 | M48: 6.8 | N48: 5.82018145 | O48: 12.62018145 | P48: 19.8403629
A49: 21.3318284 | B49: 0 | C49: 19.4755722 | D49: 40.8074007 | E49: 15.4094707 | F49: 15.6974165 | G49: 32.6193172 | H49: 36.8893047 | I49: 57.9331874 | J49: 40.3153014 | K49: 32.3713995 | L49: 80.358526 | M49: 7 | N49: 6 | O49: 13 | P49: 20
A50: 21.9413093 | B50: 0 | C50: 20.0640621 | D50: 42.0053713 | E50: 15.4043284 | F50: 15.6844503 | G50: 33.1868138 | H50: 37.4619447 | I50: 59.1231309 | J50: 40.9037912 | K50: 32.4962968 | L50: 81.4106072 | M50: 7.2 | N50: 6.18017857 | O50: 13.38017857 | P50: 20.16035714
A51: 22.5507901 | B51: 0 | C51: 20.6532822 | D51: 43.2040722 | E51: 15.3990858 | F51: 15.671781 | G51: 33.7557754 | H51: 38.0361479 | I51: 60.3142427 | J51: 41.4930113 | K51: 32.6156445 | L51: 82.469702 | M51: 7.4 | N51: 6.360708637 | O51: 13.76070864 | P51: 20.32141727
A52: 23.1602709 | B52: 0 | C52: 21.2431986 | D52: 44.4034695 | E52: 15.3937709 | F52: 15.6594063 | G52: 34.3261275 | H52: 38.6118149 | I52: 61.5064503 | J52: 42.0829278 | K52: 32.7297562 | L52: 83.5354233 | M52: 7.6 | N52: 6.541581909 | O52: 14.14158191 | P52: 20.48316382
A53: 23.7697517 | B53: 0 | C53: 21.8337777 | D53: 45.6035293 | E53: 15.3884041 | F53: 15.6473217 | G53: 34.8978025 | H53: 39.1888578 | I53: 62.6996907 | J53: 42.6735068 | K53: 32.8389221 | L53: 84.6074131 | M53: 7.8 | N53: 6.72279032 | O53: 14.52279032 | P53: 20.64558064
A54: 24.3792325 | B54: 0 | C54: 22.4249842 | D54: 46.8042167 | E54: 15.3830045 | F54: 15.6355248 | G54: 35.470737 | H54: 39.7671907 | I54: 63.8939029 | J54: 43.2647133 | K54: 32.943421 | L54: 85.6853296 | M54: 8 | N54: 6.904326023 | O54: 14.90432602 | P54: 20.80865205
A55: 24.9887133 | B55: 0 | C55: 23.0167912 | D55: 48.0055045 | E55: 15.3775903 | F55: 15.6240102 | G55: 36.0448702 | H55: 40.3467381 | I55: 65.0890316 | J55: 43.8565203 | K55: 33.0435079 | L55: 86.7688567 | M55: 8.2 | N55: 7.086181383 | O55: 15.28618138 | P55: 20.97236277
A56: 25.5981941 | B56: 0 | C56: 23.6091693 | D56: 49.2073634 | E56: 15.3721738 | F56: 15.612772 | G56: 36.6201456 | H56: 40.92743 | I56: 66.285026 | J56: 44.4488984 | K56: 33.1394255 | L56: 87.8576941 | M56: 8.4 | N56: 7.268348972 | O56: 15.66834897 | P56: 21.13669794
A57: 26.2076749 | B57: 0 | C57: 24.2020926 | D57: 50.4097675 | E57: 15.3667675 | F57: 15.6018036 | G57: 37.1965102 | H57: 41.5092009 | I57: 67.4818397 | J57: 45.0418217 | K57: 33.2314018 | L57: 88.9515643 | M57: 8.6 | N57: 7.450821565 | O57: 16.05082156 | P57: 21.30164313
A58: 26.8171558 | B58: 0 | C58: 24.795535 | D58: 51.6126907 | E58: 15.3613815 | F58: 15.5910993 | G58: 37.7739153 | H58: 42.0919921 | I58: 68.6794289 | J58: 45.6352641 | K58: 33.3196479 | L58: 90.0502032 | M58: 8.8 | N58: 7.633592129 | O58: 16.43359213 | P58: 21.46718426
A59: 27.4266366 | B59: 0 | C59: 25.389474 | D59: 52.8161106 | E59: 15.3560248 | F59: 15.5806535 | G59: 38.3523126 | H59: 42.6757449 | I59: 69.8777528 | J59: 46.2292032 | K59: 33.4043657 | L59: 91.1533646 | M59: 9 | N59: 7.816653826 | O59: 16.81665383 | P59: 21.63330765
A60: 28.0361174 | B60: 0 | C60: 25.9838871 | D60: 54.0200045 | E60: 15.3507054 | F60: 15.5704594 | G60: 38.931658 | H60: 43.2604108 | I60: 71.0767743 | J60: 46.8236163 | K60: 33.4857393 | L60: 92.2608172 | M60: 9.2 | N60: 8 | O60: 17.2 | P60: 21.8
A61: 28.6455982 | B61: 0 | C61: 26.578754 | D61: 55.2243521 | E61: 15.3454289 | F61: 15.560509 | G61: 39.5119108 | H61: 43.8459391 | I61: 72.2764571 | J61: 47.4184831 | K61: 33.563947 | L61: 93.3723431 | M61: 9.4 | N61: 8.183624174 | O61: 17.58362417 | P61: 21.96724835
A62: 29.255079 | B62: 0 | C62: 27.1740542 | D62: 56.4291332 | E62: 15.3402009 | F62: 15.550798 | G62: 40.0930305 | H62: 44.4322878 | I62: 73.4767698 | J62: 48.0137833 | K62: 33.6391512 | L62: 94.4877381 | M62: 9.6 | N62: 8.367520047 | O62: 17.96752005 | P62: 22.13504009
A63: 29.8645598 | B63: 0 | C63: 27.7697698 | D63: 57.6343296 | E63: 15.335026 | F63: 15.5413172 | G63: 40.6749797 | H63: 45.0194131 | I63: 74.6776806 | J63: 48.6094989 | K63: 33.711509 | L63: 95.6068115 | M63: 9.8 | N63: 8.551681488 | O63: 18.35168149 | P63: 22.30336298
A64: 30.4740406 | B64: 0 | C64: 28.3658826 | D64: 58.8399233 | E64: 15.3299074 | F64: 15.5320621 | G64: 41.2577246 | H64: 45.6072765 | I64: 75.8791614 | J64: 49.2056117 | K64: 33.7811637 | L64: 96.7293826 | M64: 10 | N64: 8.736102527 | O64: 18.73610253 | P64: 22.47220505
A65: 31.0835214 | B65: 0 | C65: 28.962377 | D65: 60.0458984 | E65: 15.3248476 | F65: 15.523026 | G65: 41.8412325 | H65: 46.195842 | I65: 77.0811862 | J65: 49.8021061 | K65: 33.8482528 | L65: 97.8552822 | M65: 10.2 | N65: 8.920777358 | O65: 19.12077736 | P65: 22.64155472
A66: 31.6930023 | B66: 0 | C66: 29.5592359 | D66: 61.2522381 | E66: 15.319851 | F66: 15.5142009 | G66: 42.4254695 | H66: 46.7850767 | I66: 78.283728 | J66: 50.398965 | K66: 33.9129041 | L66: 98.9843488 | M66: 10.4 | N66: 9.105700329 | O66: 19.50570033 | P66: 22.81140066
A67: 32.3024831 | B67: 0 | C67: 30.1564447 | D67: 62.4589278 | E67: 15.3149187 | F67: 15.5055824 | G67: 43.0104074 | H67: 47.374947 | I67: 79.4867652 | J67: 50.9961738 | K67: 33.975237 | L67: 100.116433 | M67: 10.6 | N67: 9.290865938 | O67: 19.89086594 | P67: 22.98173188
A68: 32.9119639 | B68: 0 | C68: 30.753991 | D68: 63.6659549 | E68: 15.3100508 | F68: 15.4971648 | G68: 43.5960169 | H68: 47.9654244 | I68: 80.6902743 | J68: 51.5937201 | K68: 34.0353668 | L68: 101.251396 | M68: 10.8 | N68: 9.476268829 | O68: 20.27626883 | P68: 23.15253766
A69: 33.5214447 | B69: 0 | C69: 31.3518589 | D69: 64.8733036 | E69: 15.3052506 | F69: 15.4889402 | G69: 44.1822731 | H69: 48.5564808 | I69: 81.8942359 | J69: 52.191588 | K69: 34.0933984 | L69: 102.3891 | M69: 11 | N69: 9.66190379 | O69: 20.66190379 | P69: 23.32380758
A70: 34.1309255 | B70: 0 | C70: 31.9500372 | D70: 66.0809628 | E70: 15.3005169 | F70: 15.4809041 | G70: 44.769149 | H70: 49.1480903 | I70: 83.0986287 | J70: 52.7897664 | K70: 34.1494323 | L70: 103.529423 | M70: 11.2 | N70: 9.847765745 | O70: 21.04776575 | P70: 23.49553149
A71: 34.7404063 | B71: 0 | C71: 32.5485135 | D71: 67.2889199 | E71: 15.2958521 | F71: 15.4730519 | G71: 45.3566219 | H71: 49.740228 | I71: 84.3034345 | J71: 53.3882427 | K71: 34.2035643 | L71: 104.672245 | M71: 11.4 | N71: 10.03384975 | O71: 21.43384975 | P71: 23.66769951
A72: 35.3498871 | B72: 0 | C72: 33.1472777 | D72: 68.4971648 | E72: 15.2912562 | F72: 15.4653758 | G72: 45.9446682 | H72: 50.3328702 | I72: 85.5086377 | J72: 53.9870068 | K72: 34.2558815 | L72: 105.817454 | M72: 11.6 | N72: 10.22015101 | O72: 21.82015101 | P72: 23.84030201
A73: 35.9593679 | B73: 0 | C73: 33.746316 | D73: 69.705684 | E73: 15.286728 | F73: 15.4578713 | G73: 46.5332652 | H73: 50.9259955 | I73: 86.7142201 | J73: 54.5860451 | K73: 34.3064695 | L73: 106.964945 | M73: 11.8 | N73: 10.40666482 | O73: 22.20666482 | P73: 24.01332963
A74: 36.5688488 | B74: 0 | C74: 34.3456208 | D74: 70.9144695 | E74: 15.2822686 | F74: 15.450535 | G74: 47.1223939 | H74: 51.5195835 | I74: 87.9201659 | J74: 55.1853499 | K74: 34.3554063 | L74: 108.114617 | M74: 12 | N74: 10.59338662 | O74: 22.59338662 | P74: 24.18677324
A75: 37.1783296 | B75: 0 | C75: 34.9451817 | D75: 72.1235113 | E75: 15.277877 | F75: 15.44336 | G75: 47.7120339 | H75: 52.113614 | I75: 89.1264616 | J75: 55.7849108 | K75: 34.4027675 | L75: 109.266376 | M75: 12.2 | N75: 10.78031198 | O75: 22.98031198 | P75: 24.36062397
A76: 37.7878104 | B76: 0 | C76: 35.5449876 | D76: 73.332798 | E76: 15.2735542 | F76: 15.436342 | G76: 48.3021659 | H76: 52.70807 | I76: 90.3330926 | J76: 56.3847167 | K76: 34.448623 | L76: 110.420134 | M76: 12.4 | N76: 10.96743657 | O76: 23.36743657 | P76: 24.53487314
A77: 38.3972912 | B77: 0 | C77: 36.1450316 | D77: 74.5423228 | E77: 15.269298 | F77: 15.4294763 | G77: 48.8927731 | H77: 53.3029334 | I77: 91.5400451 | J77: 56.9847607 | K77: 34.4930395 | L77: 111.575805 | M77: 12.6 | N77: 11.15475617 | O77: 23.75475617 | P77: 24.70951234
A78: 39.006772 | B78: 0 | C78: 36.7453047 | D78: 75.7520767 | E78: 15.2651084 | F78: 15.4227585 | G78: 49.4838375 | H78: 53.8981874 | I78: 92.7473081 | J78: 57.5850339 | K78: 34.5360801 | L78: 112.73331 | M78: 12.8 | N78: 11.34226667 | O78: 24.14226667 | P78: 24.88453335
A79: 39.6162528 | B79: 0 | C79: 37.345798 | D79: 76.9620508 | E79: 15.2609853 | F79: 15.4161851 | G79: 50.0753431 | H79: 54.493816 | I79: 93.9548691 | J79: 58.1855271 | K79: 34.5778047 | L79: 113.892573 | M79: 13 | N79: 11.52996409 | O79: 24.52996409 | P79: 25.05992817
A80: 40.2257336 | B80: 0 | C80: 37.9465045 | D80: 78.1722381 | E80: 15.2569278 | F80: 15.4097506 | G80: 50.6672754 | H80: 55.0898059 | I80: 95.1627167 | J80: 58.7862336 | K80: 34.6182686 | L80: 115.053523 | M80: 13.2 | N80: =-7.5+M80/2+(SQRT(225+M80*M80+18*M80))/2 -> 11.71784451 | O80: =-7.5+1.5*M80+(SQRT(225+M80*M80+18*M80))/2 -> 24.91784451 | P80: =SQRT(225+M80*M80+18*M80) -> 25.23568901
M81: 13.4 | N81: 11.90590414 | O81: 25.30590414 | P81: 25.41180828
M82: 13.6 | N82: 12.09413928 | O82: 25.69413928 | P82: 25.58827857
M83: 13.8 | N83: 12.28254633 | O83: 26.08254633 | P83: 25.76509266
M84: 14 | N84: 12.47112177 | O84: 26.47112177 | P84: 25.94224354
M85: 14.2 | N85: 12.65986217 | O85: 26.85986217 | P85: 26.11972435
M86: 14.4 | N86: 12.8487642 | O86: 27.2487642 | P86: 26.2975284
M87: 14.6 | N87: 13.03782459 | O87: 27.63782459 | P87: 26.47564919
M88: 14.8 | N88: 13.22704018 | O88: 28.02704018 | P88: 26.65408036
M89: 15 | N89: 13.41640786 | O89: 28.41640786 | P89: 26.83281573
M90: 15.2 | N90: 13.60592463 | O90: 28.80592463 | P90: 27.01184925
M91: 15.4 | N91: 13.79558752 | O91: 29.19558752 | P91: 27.19117504
M92: 15.6 | N92: 13.98539367 | O92: 29.58539367 | P92: 27.37078735
M93: 15.8 | N93: 14.17534029 | O93: 29.97534029 | P93: 27.55068057
M94: 16 | N94: 14.36542462 | O94: 30.36542462 | P94: 27.73084925
M95: 16.2 | N95: 14.55564402 | O95: 30.75564402 | P95: 27.91128804
M96: 16.4 | N96: 14.74599587 | O96: 31.14599587 | P96: 28.09199174
M97: 16.6 | N97: 14.93647764 | O97: 31.53647764 | P97: 28.27295528
M98: 16.8 | N98: 15.12708684 | O98: 31.92708684 | P98: 28.45417368
M99: 17 | N99: 15.31782106 | O99: 32.31782106 | P99: 28.63564213
M100: 17.2 | N100: 15.50867794 | O100: 32.70867794 | P100: 28.81735588
M101: 17.4 | N101: 15.69965517 | O101: 33.09965517 | P101: 28.99931034
M102: 17.6 | N102: 15.89075049 | O102: 33.49075049 | P102: 29.18150099
M103: 17.8 | N103: 16.08196172 | O103: 33.88196172 | P103: 29.36392344
M104: 18 | N104: 16.2732867 | O104: 34.2732867 | P104: 29.54657341
M105: 18.2 | N105: 16.46472334 | O105: 34.66472334 | P105: 29.72944668
M106: 18.4 | N106: 16.65626959 | O106: 35.05626959 | P106: 29.91253918
M107: 18.6 | N107: 16.84792344 | O107: 35.44792344 | P107: 30.09584689
M108: 18.8 | N108: 17.03968296 | O108: 35.83968296 | P108: 30.27936591
M109: 19 | N109: 17.23154621 | O109: 36.23154621 | P109: 30.46309242
M110: 19.2 | N110: 17.42351135 | O110: 36.62351135 | P110: 30.64702269
M111: 19.4 | N111: 17.61557654 | O111: 37.01557654 | P111: 30.83115308
M112: 19.6 | N112: 17.80774 | O112: 37.40774 | P112: 31.01548001
M113: 19.8 | N113: 18 | O113: 37.8 | P113: 31.2
M114: 20 | N114: 18.19235483 | O114: 38.19235483 | P114: 31.38470965
M115: 20.2 | N115: 18.38480282 | O115: 38.58480282 | P115: 31.56960564
M116: 20.4 | N116: 18.57734235 | O116: 38.97734235 | P116: 31.75468469
M117: 20.6 | N117: 18.76997182 | O117: 39.36997182 | P117: 31.93994364
M118: 20.8 | N118: 18.96268969 | O118: 39.76268969 | P118: 32.12537938
M119: 21 | N119: 19.15549442 | O119: 40.15549442 | P119: 32.31098884
M120: 21.2 | N120: 19.34838454 | O120: 40.54838454 | P120: 32.49676907
M121: 21.4 | N121: 19.54135857 | O121: 40.94135857 | P121: 32.68271715
M122: 21.6 | N122: 19.73441511 | O122: 41.33441511 | P122: 32.86883022
M123: 21.8 | N123: 19.92755275 | O123: 41.72755275 | P123: 33.05510551
M124: 22 | N124: 20.12077014 | O124: 42.12077014 | P124: 33.24154028
M125: 22.2 | N125: 20.31406593 | O125: 42.51406593 | P125: 33.42813187
M126: 22.4 | N126: 20.50743883 | O126: 42.90743883 | P126: 33.61487766
M127: 22.6 | N127: 20.70088755 | O127: 43.30088755 | P127: 33.8017751
M128: 22.8 | N128: 20.89441085 | O128: 43.69441085 | P128: 33.98882169
M129: 23 | N129: 21.08800749 | O129: 44.08800749 | P129: 34.17601498
M130: 23.2 | N130: 21.28167629 | O130: 44.48167629 | P130: 34.36335257
M131: 23.4 | N131: 21.47541606 | O131: 44.87541606 | P131: 34.55083212
M132: 23.6 | N132: 21.66922566 | O132: 45.26922566 | P132: 34.73845132
M133: 23.8 | N133: 21.86310396 | O133: 45.66310396 | P133: 34.92620792
M134: 24 | N134: 22.05704987 | O134: 46.05704987 | P134: 35.11409973
M135: 24.2 | N135: 22.25106229 | O135: 46.45106229 | P135: 35.30212458
M136: 24.4 | N136: 22.44514018 | O136: 46.84514018 | P136: 35.49028036
M137: 24.6 | N137: 22.6392825 | O137: 47.2392825 | P137: 35.67856499
M138: 24.8 | N138: 22.83348823 | O138: 47.63348823 | P138: 35.86697645
M139: 25 | N139: 23.02775638 | O139: 48.02775638 | P139: 36.05551275
M140: 25.2 | N140: 23.22208597 | O140: 48.42208597 | P140: 36.24417195
M141: 25.4 | N141: 23.41647606 | O141: 48.81647606 | P141: 36.43295212
M142: 25.6 | N142: 23.6109257 | O142: 49.2109257 | P142: 36.6218514
M143: 25.8 | N143: 23.80543398 | O143: 49.60543398 | P143: 36.81086796
M144: 26 | N144: =-7.5+M144/2+(SQRT(225+M144*M144+18*M144))/2 -> 24 | O144: =-7.5+1.5*M144+(SQRT(225+M144*M144+18*M144))/2 -> 50 | P144: =SQRT(225+M144*M144+18*M144) -> 37
M145: 26.2 | N145: 24.19462288 | O145: 50.39462288 | P145: 37.18924576
M146: 26.4 | N146: 24.38930175 | O146: 50.78930175 | P146: 37.37860351
M147: 26.6 | N147: 24.58403578 | O147: 51.18403578 | P147: 37.56807155
M148: 26.8 | N148: 24.77882412 | O148: 51.57882412 | P148: 37.75764823
M149: 27 | N149: 24.97366596 | O149: 51.97366596 | P149: 37.94733192
M150: 27.2 | N150: 25.16856051 | O150: 52.36856051 | P150: 38.13712102
M151: 27.4 | N151: 25.36350699 | O151: 52.76350699 | P151: 38.32701397
M152: 27.6 | N152: 25.55850461 | O152: 53.15850461 | P152: 38.51700923
M153: 27.8 | N153: 25.75355265 | O153: 53.55355265 | P153: 38.70710529
M154: 28 | N154: 25.94865034 | O154: 53.94865034 | P154: 38.89730068
M155: 28.2 | N155: 26.14379697 | O155: 54.34379697 | P155: 39.08759394
M156: 28.4 | N156: 26.33899183 | O156: 54.73899183 | P156: 39.27798365
M157: 28.6 | N157: 26.53423421 | O157: 55.13423421 | P157: 39.46846843
M158: 28.8 | N158: 26.72952344 | O158: 55.52952344 | P158: 39.65904689
M159: 29 | N159: 26.92485885 | O159: 55.92485885 | P159: 39.84971769
M160: 29.2 | N160: 27.12023976 | O160: 56.32023976 | P160: 40.04047952
M161: 29.4 | N161: 27.31566554 | O161: 56.71566554 | P161: 40.23133107
M162: 29.6 | N162: 27.51113554 | O162: 57.11113554 | P162: 40.42227109
M163: 29.8 | N163: 27.70664916 | O163: 57.50664916 | P163: 40.61329831
M164: 30 | N164: 27.90220576 | O164: 57.90220576 | P164: 40.80441153
M165: 30.2 | N165: 28.09780476 | O165: 58.29780476 | P165: 40.99560952
M166: 30.4 | N166: 28.29344556 | O166: 58.69344556 | P166: 41.18689112
M167: 30.6 | N167: 28.48912758 | O167: 59.08912758 | P167: 41.37825516
M168: 30.8 | N168: 28.68485025 | O168: 59.48485025 | P168: 41.5697005
M169: 31 | N169: 28.88061302 | O169: 59.88061302 | P169: 41.76122604
M170: 31.2 | N170: 29.07641533 | O170: 60.27641533 | P170: 41.95283066
M171: 31.4 | N171: 29.27225664 | O171: 60.67225664 | P171: 42.14451328
M172: 31.6 | N172: 29.46813643 | O172: 61.06813643 | P172: 42.33627286
M173: 31.8 | N173: 29.66405418 | O173: 61.46405418 | P173: 42.52810835
M174: 32 | N174: 29.86000936 | O174: 61.86000936 | P174: 42.72001873
M175: 32.2 | N175: 30.05600149 | O175: 62.25600149 | P175: 42.91200298
M176: 32.4 | N176: 30.25203007 | O176: 62.65203007 | P176: 43.10406013
M177: 32.6 | N177: 30.4480946 | O177: 63.0480946 | P177: 43.29618921
M178: 32.8 | N178: 30.64419463 | O178: 63.44419463 | P178: 43.48838926
M179: 33 | N179: 30.84032967 | O179: 63.84032967 | P179: 43.68065934
M180: 33.2 | N180: 31.03649926 | O180: 64.23649926 | P180: 43.87299853
M181: 33.4 | N181: 31.23270297 | O181: 64.63270297 | P181: 44.06540593
M182: 33.6 | N182: 31.42894033 | O182: 65.02894033 | P182: 44.25788065
M183: 33.8 | N183: 31.62521091 | O183: 65.42521091 | P183: 44.45042182
M184: 34 | N184: 31.82151429 | O184: 65.82151429 | P184: 44.64302857
M185: 34.2 | N185: 32.01785003 | O185: 66.21785003 | P185: 44.83570006
M186: 34.4 | N186: 32.21421773 | O186: 66.61421773 | P186: 45.02843546
M187: 34.6 | N187: 32.41061698 | O187: 67.01061698 | P187: 45.22123395
M188: 34.8 | N188: 32.60704736 | O188: 67.40704736 | P188: 45.41409473
M189: 35 | N189: 32.8035085 | O189: 67.8035085 | P189: 45.607017
M190: 35.2 | N190: 33 | O190: 68.2 | P190: 45.8
M191: 35.4 | N191: 33.19652148 | O191: 68.59652148 | P191: 45.99304295
M192: 35.6 | N192: 33.39307255 | O192: 68.99307255 | P192: 46.18614511
M193: 35.8 | N193: 33.58965287 | O193: 69.38965287 | P193: 46.37930573
M194: 36 | N194: 33.78626204 | O194: 69.78626204 | P194: 46.57252409
M195: 36.2 | N195: 33.98289973 | O195: 70.18289973 | P195: 46.76579947
M196: 36.4 | N196: 34.17956558 | O196: 70.57956558 | P196: 46.95913117
M197: 36.6 | N197: 34.37625925 | O197: 70.97625925 | P197: 47.15251849
M198: 36.8 | N198: 34.57298038 | O198: 71.37298038 | P198: 47.34596076
M199: 37 | N199: 34.76972865 | O199: 71.76972865 | P199: 47.5394573
M200: 37.2 | N200: 34.96650372 | O200: 72.16650372 | P200: 47.73300745
M201: 37.4 | N201: 35.16330528 | O201: 72.56330528 | P201: 47.92661056
... 13 more rows

Sheet raw
A1: ** RUN 4.5 (18.01.01) ** CAMMAG CAMMAG CAMMAG CAMMAG ** RUN 4.5 **
A2: SETUP: d2 setup for Tanabe Sugano
A3: INPUT DATA for RUN :
A4: TITL d2 for Tanabe Sugano
A5: CALC 1
A6: ZETA 0.0
A7: B 886
A8: C 3916
A9: LIST 1 1 0 0 0 0 0 0 1 0 0
A10: SYML 32 0 0
A12: 0 | B12: 0 | C12: 3**** T2g**** | D12: 0 | E12: 1**** Eg **** | F12: 13.8397291 | G12: 3T1g | H12: 15 | I12: 1**** T2g**** | J12: 20.8397291 | K12: 1A1g | L12: 52.9390519
A13: 1 | B13: 0 | C13: 3T1g | D13: 3T2g | E13: 3A2g | F13: 1T2g | G13: 1Eg | H13: 3T1g | I13: 1T2g | J13: 1Eg | K13: 1T1g | L13: 1A1g | M13: 1A1g
A15: 2 | B15: 0.609480813 | C15: 3T1g | D15: 0 | E15: 3T2g | F15: 0.491451467 | G15: 3A2g | H15: 1.10093228 | I15: 1T2g | J15: 14.0568397 | K15: 1Eg | L15: 14.3653499 | M15: 3T1g | N15: 15.3734221 | O15: 1T2g | P15: 20.9960406 | Q15: 1Eg | R15: 21.2970124 | S15: 1T1g | T15: 21.3311806 | U15: 1A1g | V15: 21.441886 | W15: 1A1g | X15: 53.319798
A16: 3 | B16: 1.21896163 | C16: 3T1g | D16: 0 | E16: 3T2g | F16: 0.990267494 | G16: 3A2g | H16: 2.20922912 | I16: 1T2g | J16: 14.254684 | K16: 1Eg | L16: 14.7920722 | M16: 3T1g | N16: 15.7615722 | O16: 1T2g | P16: 21.1863465 | Q16: 1T1g | R16: 21.8299966 | S16: 1Eg | T16: 21.8679199 | U16: 1A1g | V16: 22.0287291 | W16: 1A1g | X16: 53.7305858
A17: 4 | B17: 1.82844244 | C17: 3T1g | D17: 0 | E17: 3T2g | F17: 1.49591648 | G17: 3A2g | H17: 3.32435892 | I17: 1T2g | J17: 14.4326445 | K17: 1Eg | L17: 15.1255564 | M17: 3T1g | N17: 16.1633894 | O17: 1T2g | P17: 21.4102032 | Q17: 1T1g | R17: 22.3356456 | S17: 1Eg | T17: 22.5457336 | U17: 1A1g | V17: 22.5993488 | W17: 1A1g | X17: 54.1712652
A18: 5 | B18: 2.43792325 | C18: 3T1g | D18: 0 | E18: 3T2g | F18: 2.00790181 | G18: 3A2g | H18: 4.44582506 | I18: 1T2g | J18: 14.5907449 | K18: 1Eg | L18: 15.3783047 | M18: 3T1g | N18: 16.5778792 | O18: 1T2g | P18: 21.6665926 | Q18: 1T1g | R18: 22.8476309 | S18: 1A1g | T18: 23.1529605 | U18: 1Eg | V18: 23.316956 | W18: 1A1g | X18: 54.641623
A19: 6 | B19: 3.04740406 | C19: 3T1g | D19: 0 | E19: 3T2g | F19: 2.52575959 | G19: 3A2g | H19: 5.57316366 | I19: 1T2g | J19: 14.7295903 | K19: 1Eg | L19: 15.5655745 | M19: 3T1g | N19: 17.0041151 | O19: 1T2g | P19: 21.9539842 | Q19: 1T1g | R19: 23.3654887 | S19: 1A1g | T19: 23.6889176 | U19: 1Eg | V19: 24.1654041 | W19: 1A1g | X19: 55.1413826
A20: 7 | B20: 3.65688488 | C20: 3T1g | D20: 0 | E20: 3T2g | F20: 3.04906095 | G20: 3A2g | H20: 6.70594582 | I20: 1T2g | J20: 14.8502585 | K20: 1Eg | L20: 15.7020079 | M20: 3T1g | N20: 17.441237 | O20: 1T2g | P20: 22.2704368 | Q20: 1T1g | R20: 23.8887901 | S20: 1A1g | T20: 24.2067088 | U20: 1Eg | V20: 25.0755711 | W20: 1A1g | X20: 55.6701941
A21: 8 | B21: 4.26636569 | C21: 3T1g | D21: 0 | E21: 3T2g | F21: 3.57740519 | G21: 3A2g | H21: 7.84377088 | I21: 1T2g | J21: 14.9541625 | K21: 1Eg | L21: 15.799956 | M21: 3T1g | N21: 17.8884447 | O21: 1T2g | P21: 22.6137404 | Q21: 1T1g | R21: 24.4171343 | S21: 1A1g | T21: 24.7059582 | U21: 1Eg | V21: 26.0343126 | W21: 1A1g | X21: 56.2276343
A22: 9 | B22: 4.8758465 | C22: 3T1g | D22: 0 | E22: 3T2g | F22: 4.11042438 | G22: 3A2g | H22: 8.98627088 | I22: 1T2g | J22: 15.0429052 | K22: 1Eg | L22: 15.8691117 | M22: 3T1g | N22: 18.3450023 | O22: 1T2g | P22: 22.9815564 | Q22: 1T1g | R22: 24.9501535 | S22: 1A1g | T22: 25.1864266 | U22: 1Eg | V22: 27.0311964 | W22: 1A1g | X22: 56.8132032
A23: 10 | B23: 5.48532731 | C23: 3T1g | D23: 0 | E23: 3T2g | F23: 4.64777765 | G23: 3A2g | H23: 10.133105 | I23: 1T2g | J23: 15.1181569 | K23: 1Eg | L23: 15.9168002 | M23: 3T1g | N23: 18.8102291 | O23: 1T2g | P23: 23.3715293 | Q23: 1T1g | R23: 25.4875068 | S23: 1A1g | T23: 25.648009 | U23: 1Eg | V23: 28.0582144 | W23: 1A1g | X23: 57.4263284
A24: 11 | B24: 6.09480813 | C24: 3T1g | D24: 0 | E24: 3T2g | F24: 5.18915237 | G24: 3A2g | H24: 11.2839605 | I24: 1T2g | J24: 15.1815621 | K24: 1Eg | L24: 15.948465 | M24: 3T1g | N24: 19.2834966 | O24: 1T2g | P24: 23.7813916 | Q24: 1T1g | R24: 26.0288815 | S24: 1A1g | T24: 26.0907201 | U24: 1Eg | V24: 29.109298 | W24: 1A1g | X24: 58.0663657
A25: 12 | B25: 6.70428894 | C25: 3T1g | D25: 0 | E25: 3T2g | F25: 5.73425847 | G25: 3A2g | H25: 12.4385474 | I25: 1T2g | J25: 15.2346693 | K25: 1Eg | L25: 15.9681309 | M25: 3T1g | N25: 19.764228 | O25: 1T2g | P25: 24.2090169 | Q25: 1A1g | R25: 26.5146919 | S25: 1T1g | T25: 26.5739876 | U25: 1Eg | V25: 30.1798442 | W25: 1A1g | X25: 58.7326061
A26: 13 | B26: 7.31376975 | C26: 3T1g | D26: 0 | E26: 3T2g | F26: 6.2828307 | G26: 3A2g | H26: 13.5966005 | I26: 1T2g | J26: 15.2788928 | K26: 1Eg | L26: 15.9787743 | M26: 3T1g | N26: 20.2518905 | O26: 1T2g | P26: 24.652456 | Q26: 1A1g | R26: 26.9201614 | S26: 1T1g | T26: 27.1225598 | U26: 1Eg | V26: 31.2663454 | W26: 1A1g | X26: 59.424281
A27: 14 | B27: 7.92325056 | C27: 3T1g | D27: 0 | E27: 3T2g | F27: 6.83462415 | G27: 3A2g | H27: 14.7578747 | I27: 1T2g | J27: 15.3154989 | K27: 1Eg | L27: 15.9826106 | M27: 3T1g | N27: 20.7459977 | O27: 1T2g | P27: 25.1099571 | Q27: 1A1g | R27: 27.3074582 | S27: 1T1g | T27: 27.6743533 | U27: 1Eg | V27: 32.3660959 | W27: 1A1g | X27: 60.1405711
A28: 15 | B28: 8.53273138 | C28: 3T1g | D28: 0 | E28: 3T2g | F28: 7.38941422 | G28: 1T2g | H28: 15.3456005 | I28: 3A2g | J28: 15.9221456 | K28: 1Eg | L28: 15.9813002 | M28: 3T1g | N28: 21.2460982 | O28: 1T2g | P28: 25.579956 | Q28: 1A1g | R28: 27.6769932 | S28: 1T1g | T28: 28.2291433 | U28: 1Eg | V28: 33.4769876 | W28: 1A1g | X28: 60.8806174
A29: 16 | B29: 9.14221219 | C29: 3T1g | D29: 0 | E29: 3T2g | F29: 7.94699549 | G29: 1T2g | H29: 15.3701614 | I29: 1Eg | J29: 15.9760948 | K29: 3A2g | L29: 17.0892077 | M29: 3T1g | N29: 21.7517788 | O29: 1T2g | P29: 26.0610745 | Q29: 1A1g | R29: 28.0292472 | S29: 1T1g | T29: 28.7867246 | U29: 1Eg | V29: 34.5973544 | W29: 1A1g | X29: 61.6435248
A30: 17 | B30: 9.751693 | C30: 3T1g | D30: 0 | E30: 3T2g | F30: 8.50717607 | G30: 1T2g | H30: 15.3900169 | I30: 1Eg | J30: 15.967947 | K30: 3A2g | L30: 18.2588691 | M30: 3T1g | N30: 22.2626591 | O30: 1T2g | P30: 26.5521005 | Q30: 1A1g | R30: 28.3647551 | S30: 1T1g | T30: 29.3469052 | U30: 1Eg | V30: 35.7258634 | W30: 1A1g | X30: 62.4283781
A31: 18 | B31: 10.3611738 | C31: 3T1g | D31: 0 | E31: 3T2g | F31: 9.06978217 | G31: 1T2g | H31: 15.4058758 | I31: 1Eg | J31: 15.9575858 | K31: 3A2g | L31: 19.430956 | M31: 3T1g | N31: 22.7783905 | O31: 1T2g | P31: 27.0519729 | Q31: 1A1g | R31: 28.6840971 | S31: 1T1g | T31: 29.9095113 | U31: 1Eg | V31: 36.8614368 | W31: 1A1g | X31: 63.2342472
A32: 19 | B32: 10.9706546 | C32: 3T1g | D32: 0 | E32: 3T2g | F32: 9.63465237 | G32: 1T2g | H32: 15.4183465 | I32: 1Eg | J32: 15.9455734 | K32: 3A2g | L32: 20.605307 | M32: 3T1g | N32: 23.298649 | O32: 1T2g | P32: 27.5597607 | Q32: 1A1g | R32: 28.987886 | S32: 1T1g | T32: 30.4743815 | U32: 1Eg | V32: 38.0031896 | W32: 1A1g | X32: 64.0601986
A33: 20 | B33: 11.5801354 | C33: 3T1g | D33: 0 | E33: 3T2g | F33: 10.2016377 | G33: 1T2g | H33: 15.4279436 | I33: 1Eg | J33: 15.9323442 | K33: 3A2g | L33: 21.7817731 | M33: 3T1g | N33: 23.82314 | O33: 1T2g | P33: 28.0746535 | Q33: 1A1g | R33: 29.2767562 | S33: 1T1g | T33: 31.0413668 | U33: 1Eg | V33: 39.1503894 | W33: 1A1g | X33: 64.9052991
A34: 21 | B34: 12.1896163 | C34: 3T1g | D34: 0 | E34: 3T2g | F34: 10.7706016 | G34: 1T2g | H34: 15.4351072 | I34: 1Eg | J34: 15.9182381 | K34: 3A2g | L34: 22.9602178 | M34: 3T1g | N34: 24.351588 | O34: 1T2g | P34: 28.5959391 | Q34: 1A1g | R34: 29.5513567 | S34: 1T1g | T34: 31.6103307 | U34: 1Eg | V34: 40.3024244 | W34: 1A1g | X34: 65.7686287
A35: 22 | B35: 12.7990971 | C35: 3T1g | D35: 0 | E35: 3T2g | F35: 11.3414199 | G35: 1T2g | H35: 15.4402065 | I35: 1Eg | J35: 15.9035203 | K35: 3A2g | L35: 24.1405169 | M35: 3T1g | N35: 24.8837427 | O35: 1T2g | P35: 29.1229944 | Q35: 1A1g | R35: 29.8123397 | S35: 1T1g | T35: 32.181149 | U35: 1Eg | V35: 41.4587777 | W35: 1A1g | X35: 66.649281
A36: 23 | B36: 13.4085779 | C36: 3T1g | D36: 0 | E36: 3T2g | F36: 11.913974 | G36: 1T2g | H36: 15.4435576 | I36: 1Eg | J36: 15.8883973 | K36: 3A2g | L36: 25.3225519 | M36: 3T1g | N36: 25.4193702 | O36: 1T2g | P36: 29.6552709 | Q36: 1A1g | R36: 30.0603567 | S36: 1T1g | T36: 32.7537032 | U36: 1Eg | V36: 42.6190079 | W36: 1A1g | X36: 67.5463725
A37: 24 | B37: 14.0180587 | C37: 3T1g | D37: 0 | E37: 3T2g | F37: 12.4881569 | G37: 1T2g | H37: 15.4454278 | I37: 1Eg | J37: 15.8730339 | K37: 3T1g | L37: 25.9582551 | M37: 3A2g | N37: 26.5062156 | O37: 1T2g | P37: 30.1922867 | Q37: 1A1g | R37: 30.2960497 | S37: 1T1g | T37: 33.327886 | U37: 1Eg | V37: 43.7827393 | W37: 1A1g | X37: 68.4590451
A38: 25 | B38: 14.6275395 | C38: 3T1g | D38: 0 | E38: 3T2g | F38: 13.0638702 | G38: 1T2g | H38: 15.446044 | I38: 1Eg | J38: 15.8575564 | K38: 3T1g | L38: 26.5002009 | M38: 3A2g | N38: 27.6914097 | O38: 1A1g | P38: 30.5200485 | Q38: 1T2g | R38: 30.7336151 | S38: 1T1g | T38: 33.9035993 | U38: 1Eg | V38: 44.9496422 | W38: 1A1g | X38: 69.3864718
A39: 26 | B39: 15.2370203 | C39: 3T1g | D39: 0 | E39: 3T2g | F39: 13.6410203 | G39: 1T2g | H39: 15.4455993 | I39: 1Eg | J39: 15.8420655 | K39: 3T1g | L39: 27.0450203 | M39: 3A2g | N39: 28.8780406 | O39: 1A1g | P39: 30.7329661 | Q39: 1T2g | R39: 31.2788792 | S39: 1T1g | T39: 34.4807494 | U39: 1Eg | V39: 46.1194345 | W39: 1A1g | X39: 70.3278555
A40: 27 | B40: 15.8465011 | C40: 3T1g | D40: 0 | E40: 3T2g | F40: 14.2195237 | G40: 1T2g | H40: 15.4442596 | I40: 1Eg | J40: 15.82664 | K40: 3T1g | L40: 27.5925463 | M40: 3A2g | N40: 30.0660248 | O40: 1A1g | P40: 30.9353962 | Q40: 1T2g | R40: 31.8277449 | S40: 1T1g | T40: 35.0592528 | U40: 1Eg | V40: 47.2918657 | W40: 1A1g | X40: 71.2824323
A41: 28 | B41: 16.4559819 | C41: 3T1g | D41: 0 | E41: 3T2g | F41: 14.7993002 | G41: 1T2g | H41: 15.4421637 | I41: 1Eg | J41: 15.8113431 | K41: 3T1g | L41: 28.1426196 | M41: 1A1g | N41: 31.1279086 | O41: 3A2g | P41: 31.2552822 | Q41: 1T2g | R41: 32.3799142 | S41: 1T1g | T41: 35.6390293 | U41: 1Eg | V41: 48.4667167 | W41: 1A1g | X41: 72.249474
A42: 29 | B42: 17.0654628 | C42: 3T1g | D42: 0 | E42: 3T2g | F42: 15.3802777 | G42: 1T2g | H42: 15.4394312 | I42: 1Eg | J42: 15.7962201 | K42: 3T1g | L42: 28.6950926 | M42: 1A1g | N42: 31.3110497 | O42: 3A2g | P42: 32.4457404 | Q42: 1T2g | R42: 32.9351196 | S42: 1T1g | T42: 36.2200068 | U42: 1Eg | V42: 49.6437935 | W42: 1A1g | X42: 73.2282867
A43: 30 | B43: 17.6749436 | C43: 3T1g | D43: 0 | E43: 1T2g | F43: 15.4361659 | G43: 1Eg | H43: 15.7813093 | I43: 3T2g | J43: 15.9623871 | K43: 3T1g | L43: 29.2498307 | M43: 1A1g | N43: 31.4853431 | O43: 1T2g | P43: 33.4931242 | Q43: 3A2g | R43: 33.6373307 | S43: 1T1g | T43: 36.8021163 | U43: 1Eg | V43: 50.8229233 | W43: 1A1g | X43: 74.2182122
A44: 31 | B44: 18.2844244 | C44: 3T1g | D44: 0 | E44: 1T2g | F44: 15.4324526 | G44: 1Eg | H44: 15.7666377 | I44: 3T2g | J44: 16.5455655 | K44: 3T1g | L44: 29.8067077 | M44: 1A1g | N44: 31.6512867 | O44: 1T2g | P44: 34.0537133 | Q44: 3A2g | R44: 34.8299898 | S44: 1T1g | T44: 37.3852946 | U44: 1Eg | V44: 52.0039526 | W44: 1A1g | X44: 75.2186264
A45: 32 | B45: 18.8939052 | C45: 3T1g | D45: 0 | E45: 1T2g | F45: 15.4283691 | G45: 1Eg | H45: 15.7522257 | I45: 3T2g | J45: 17.1297551 | K45: 3T1g | L45: 30.365605 | M45: 1A1g | N45: 31.809351 | O45: 1T2g | P45: 34.6166941 | Q45: 3A2g | R45: 36.0236603 | S45: 1T1g | T45: 37.9694842 | U45: 1Eg | V45: 53.1867415 | W45: 1A1g | X45: 76.2289402
A46: 33 | B46: 19.503386 | C46: 3T1g | D46: 0 | E46: 1T2g | F46: 15.4239774 | G46: 1Eg | H46: 15.7380892 | I46: 3T2g | J46: 17.7148995 | K46: 3T1g | L46: 30.9264131 | M46: 1A1g | N46: 31.9599842 | O46: 1T2g | P46: 35.1818939 | Q46: 3A2g | R46: 37.2182856 | S46: 1T1g | T46: 38.5546287 | U46: 1Eg | V46: 54.371167 | W46: 1A1g | X46: 77.2485959
A47: 34 | B47: 20.1128668 | C47: 3T1g | D47: 0 | E47: 1T2g | F47: 15.419333 | G47: 1Eg | H47: 15.7242381 | I47: 3T2g | J47: 18.3009481 | K47: 3T1g | L47: 31.4890305 | M47: 1A1g | N47: 32.1036072 | O47: 1T2g | P47: 35.7491558 | Q47: 3A2g | R47: 38.4138149 | S47: 1T1g | T47: 39.1406772 | U47: 1Eg | V47: 55.5571163 | W47: 1A1g | X47: 78.27707
A48: 35 | B48: 20.7223476 | C48: 3T1g | D48: 0 | E48: 1T2g | F48: 15.4144842 | G48: 1Eg | H48: 15.7106795 | I48: 3T2g | J48: 18.8878544 | K48: 3T1g | L48: 32.0533612 | M48: 1A1g | N48: 32.2406208 | O48: 1T2g | P48: 36.3183352 | Q48: 3A2g | R48: 39.610202 | S48: 1T1g | T48: 39.7275835 | U48: 1Eg | V48: 56.7444876 | W48: 1A1g | X48: 79.3138691
A49: 36 | B49: 21.3318284 | C49: 3T1g | D49: 0 | E49: 1T2g | F49: 15.4094707 | G49: 1Eg | H49: 15.6974165 | I49: 3T2g | J49: 19.4755722 | K49: 1A1g | L49: 32.3713995 | M49: 3T1g | N49: 32.6193172 | O49: 1T2g | P49: 36.8893047 | Q49: 1T1g | R49: 40.3153014 | S49: 3A2g | T49: 40.8074007 | U49: 1Eg | V49: 57.9331874 | W49: 1A1g | X49: 80.358526
A50: 37 | B50: 21.9413093 | C50: 3T1g | D50: 0 | E50: 1T2g | F50: 15.4043284 | G50: 1Eg | H50: 15.6844503 | I50: 3T2g | J50: 20.0640621 | K50: 1A1g | L50: 32.4962968 | M50: 3T1g | N50: 33.1868138 | O50: 1T2g | P50: 37.4619447 | Q50: 1T1g | R50: 40.9037912 | S50: 3A2g | T50: 42.0053713 | U50: 1Eg | V50: 59.1231309 | W50: 1A1g | X50: 81.4106072
A51: 38 | B51: 22.5507901 | C51: 3T1g | D51: 0 | E51: 1T2g | F51: 15.3990858 | G51: 1Eg | H51: 15.671781 | I51: 3T2g | J51: 20.6532822 | K51: 1A1g | L51: 32.6156445 | M51: 3T1g | N51: 33.7557754 | O51: 1T2g | P51: 38.0361479 | Q51: 1T1g | R51: 41.4930113 | S51: 3A2g | T51: 43.2040722 | U51: 1Eg | V51: 60.3142427 | W51: 1A1g | X51: 82.469702
A52: 39 | B52: 23.1602709 | C52: 3T1g | D52: 0 | E52: 1T2g | F52: 15.3937709 | G52: 1Eg | H52: 15.6594063 | I52: 3T2g | J52: 21.2431986 | K52: 1A1g | L52: 32.7297562 | M52: 3T1g | N52: 34.3261275 | O52: 1T2g | P52: 38.6118149 | Q52: 1T1g | R52: 42.0829278 | S52: 3A2g | T52: 44.4034695 | U52: 1Eg | V52: 61.5064503 | W52: 1A1g | X52: 83.5354233
A53: 40 | B53: 23.7697517 | C53: 3T1g | D53: 0 | E53: 1T2g | F53: 15.3884041 | G53: 1Eg | H53: 15.6473217 | I53: 3T2g | J53: 21.8337777 | K53: 1A1g | L53: 32.8389221 | M53: 3T1g | N53: 34.8978025 | O53: 1T2g | P53: 39.1888578 | Q53: 1T1g | R53: 42.6735068 | S53: 3A2g | T53: 45.6035293 | U53: 1Eg | V53: 62.6996907 | W53: 1A1g | X53: 84.6074131
A54: 41 | B54: 24.3792325 | C54: 3T1g | D54: 0 | E54: 1T2g | F54: 15.3830045 | G54: 1Eg | H54: 15.6355248 | I54: 3T2g | J54: 22.4249842 | K54: 1A1g | L54: 32.943421 | M54: 3T1g | N54: 35.470737 | O54: 1T2g | P54: 39.7671907 | Q54: 1T1g | R54: 43.2647133 | S54: 3A2g | T54: 46.8042167 | U54: 1Eg | V54: 63.8939029 | W54: 1A1g | X54: 85.6853296
A55: 42 | B55: 24.9887133 | C55: 3T1g | D55: 0 | E55: 1T2g | F55: 15.3775903 | G55: 1Eg | H55: 15.6240102 | I55: 3T2g | J55: 23.0167912 | K55: 1A1g | L55: 33.0435079 | M55: 3T1g | N55: 36.0448702 | O55: 1T2g | P55: 40.3467381 | Q55: 1T1g | R55: 43.8565203 | S55: 3A2g | T55: 48.0055045 | U55: 1Eg | V55: 65.0890316 | W55: 1A1g | X55: 86.7688567
A56: 43 | B56: 25.5981941 | C56: 3T1g | D56: 0 | E56: 1T2g | F56: 15.3721738 | G56: 1Eg | H56: 15.612772 | I56: 3T2g | J56: 23.6091693 | K56: 1A1g | L56: 33.1394255 | M56: 3T1g | N56: 36.6201456 | O56: 1T2g | P56: 40.92743 | Q56: 1T1g | R56: 44.4488984 | S56: 3A2g | T56: 49.2073634 | U56: 1Eg | V56: 66.285026 | W56: 1A1g | X56: 87.8576941
A57: 44 | B57: 26.2076749 | C57: 3T1g | D57: 0 | E57: 1T2g | F57: 15.3667675 | G57: 1Eg | H57: 15.6018036 | I57: 3T2g | J57: 24.2020926 | K57: 1A1g | L57: 33.2314018 | M57: 3T1g | N57: 37.1965102 | O57: 1T2g | P57: 41.5092009 | Q57: 1T1g | R57: 45.0418217 | S57: 3A2g | T57: 50.4097675 | U57: 1Eg | V57: 67.4818397 | W57: 1A1g | X57: 88.9515643
A58: 45 | B58: 26.8171558 | C58: 3T1g | D58: 0 | E58: 1T2g | F58: 15.3613815 | G58: 1Eg | H58: 15.5910993 | I58: 3T2g | J58: 24.795535 | K58: 1A1g | L58: 33.3196479 | M58: 3T1g | N58: 37.7739153 | O58: 1T2g | P58: 42.0919921 | Q58: 1T1g | R58: 45.6352641 | S58: 3A2g | T58: 51.6126907 | U58: 1Eg | V58: 68.6794289 | W58: 1A1g | X58: 90.0502032
A59: 46 | B59: 27.4266366 | C59: 3T1g | D59: 0 | E59: 1T2g | F59: 15.3560248 | G59: 1Eg | H59: 15.5806535 | I59: 3T2g | J59: 25.389474 | K59: 1A1g | L59: 33.4043657 | M59: 3T1g | N59: 38.3523126 | O59: 1T2g | P59: 42.6757449 | Q59: 1T1g | R59: 46.2292032 | S59: 3A2g | T59: 52.8161106 | U59: 1Eg | V59: 69.8777528 | W59: 1A1g | X59: 91.1533646
A60: 47 | B60: 28.0361174 | C60: 3T1g | D60: 0 | E60: 1T2g | F60: 15.3507054 | G60: 1Eg | H60: 15.5704594 | I60: 3T2g | J60: 25.9838871 | K60: 1A1g | L60: 33.4857393 | M60: 3T1g | N60: 38.931658 | O60: 1T2g | P60: 43.2604108 | Q60: 1T1g | R60: 46.8236163 | S60: 3A2g | T60: 54.0200045 | U60: 1Eg | V60: 71.0767743 | W60: 1A1g | X60: 92.2608172
A61: 48 | B61: 28.6455982 | C61: 3T1g | D61: 0 | E61: 1T2g | F61: 15.3454289 | G61: 1Eg | H61: 15.560509 | I61: 3T2g | J61: 26.578754 | K61: 1A1g | L61: 33.563947 | M61: 3T1g | N61: 39.5119108 | O61: 1T2g | P61: 43.8459391 | Q61: 1T1g | R61: 47.4184831 | S61: 3A2g | T61: 55.2243521 | U61: 1Eg | V61: 72.2764571 | W61: 1A1g | X61: 93.3723431
A62: 49 | B62: 29.255079 | C62: 3T1g | D62: 0 | E62: 1T2g | F62: 15.3402009 | G62: 1Eg | H62: 15.550798 | I62: 3T2g | J62: 27.1740542 | K62: 1A1g | L62: 33.6391512 | M62: 3T1g | N62: 40.0930305 | O62: 1T2g | P62: 44.4322878 | Q62: 1T1g | R62: 48.0137833 | S62: 3A2g | T62: 56.4291332 | U62: 1Eg | V62: 73.4767698 | W62: 1A1g | X62: 94.4877381
A63: 50 | B63: 29.8645598 | C63: 3T1g | D63: 0 | E63: 1T2g | F63: 15.335026 | G63: 1Eg | H63: 15.5413172 | I63: 3T2g | J63: 27.7697698 | K63: 1A1g | L63: 33.711509 | M63: 3T1g | N63: 40.6749797 | O63: 1T2g | P63: 45.0194131 | Q63: 1T1g | R63: 48.6094989 | S63: 3A2g | T63: 57.6343296 | U63: 1Eg | V63: 74.6776806 | W63: 1A1g | X63: 95.6068115
A64: 51 | B64: 30.4740406 | C64: 3T1g | D64: 0 | E64: 1T2g | F64: 15.3299074 | G64: 1Eg | H64: 15.5320621 | I64: 3T2g | J64: 28.3658826 | K64: 1A1g | L64: 33.7811637 | M64: 3T1g | N64: 41.2577246 | O64: 1T2g | P64: 45.6072765 | Q64: 1T1g | R64: 49.2056117 | S64: 3A2g | T64: 58.8399233 | U64: 1Eg | V64: 75.8791614 | W64: 1A1g | X64: 96.7293826
A65: 52 | B65: 31.0835214 | C65: 3T1g | D65: 0 | E65: 1T2g | F65: 15.3248476 | G65: 1Eg | H65: 15.523026 | I65: 3T2g | J65: 28.962377 | K65: 1A1g | L65: 33.8482528 | M65: 3T1g | N65: 41.8412325 | O65: 1T2g | P65: 46.195842 | Q65: 1T1g | R65: 49.8021061 | S65: 3A2g | T65: 60.0458984 | U65: 1Eg | V65: 77.0811862 | W65: 1A1g | X65: 97.8552822
A66: 53 | B66: 31.6930023 | C66: 3T1g | D66: 0 | E66: 1T2g | F66: 15.319851 | G66: 1Eg | H66: 15.5142009 | I66: 3T2g | J66: 29.5592359 | K66: 1A1g | L66: 33.9129041 | M66: 3T1g | N66: 42.4254695 | O66: 1T2g | P66: 46.7850767 | Q66: 1T1g | R66: 50.398965 | S66: 3A2g | T66: 61.2522381 | U66: 1Eg | V66: 78.283728 | W66: 1A1g | X66: 98.9843488
A67: 54 | B67: 32.3024831 | C67: 3T1g | D67: 0 | E67: 1T2g | F67: 15.3149187 | G67: 1Eg | H67: 15.5055824 | I67: 3T2g | J67: 30.1564447 | K67: 1A1g | L67: 33.975237 | M67: 3T1g | N67: 43.0104074 | O67: 1T2g | P67: 47.374947 | Q67: 1T1g | R67: 50.9961738 | S67: 3A2g | T67: 62.4589278 | U67: 1Eg | V67: 79.4867652 | W67: 1A1g | X67: 100.116433
A68: 55 | B68: 32.9119639 | C68: 3T1g | D68: 0 | E68: 1T2g | F68: 15.3100508 | G68: 1Eg | H68: 15.4971648 | I68: 3T2g | J68: 30.753991 | K68: 1A1g | L68: 34.0353668 | M68: 3T1g | N68: 43.5960169 | O68: 1T2g | P68: 47.9654244 | Q68: 1T1g | R68: 51.5937201 | S68: 3A2g | T68: 63.6659549 | U68: 1Eg | V68: 80.6902743 | W68: 1A1g | X68: 101.251396
A69: 56 | B69: 33.5214447 | C69: 3T1g | D69: 0 | E69: 1T2g | F69: 15.3052506 | G69: 1Eg | H69: 15.4889402 | I69: 3T2g | J69: 31.3518589 | K69: 1A1g | L69: 34.0933984 | M69: 3T1g | N69: 44.1822731 | O69: 1T2g | P69: 48.5564808 | Q69: 1T1g | R69: 52.191588 | S69: 3A2g | T69: 64.8733036 | U69: 1Eg | V69: 81.8942359 | W69: 1A1g | X69: 102.3891
A70: 57 | B70: 34.1309255 | C70: 3T1g | D70: 0 | E70: 1T2g | F70: 15.3005169 | G70: 1Eg | H70: 15.4809041 | I70: 3T2g | J70: 31.9500372 | K70: 1A1g | L70: 34.1494323 | M70: 3T1g | N70: 44.769149 | O70: 1T2g | P70: 49.1480903 | Q70: 1T1g | R70: 52.7897664 | S70: 3A2g | T70: 66.0809628 | U70: 1Eg | V70: 83.0986287 | W70: 1A1g | X70: 103.529423
A71: 58 | B71: 34.7404063 | C71: 3T1g | D71: 0 | E71: 1T2g | F71: 15.2958521 | G71: 1Eg | H71: 15.4730519 | I71: 3T2g | J71: 32.5485135 | K71: 1A1g | L71: 34.2035643 | M71: 3T1g | N71: 45.3566219 | O71: 1T2g | P71: 49.740228 | Q71: 1T1g | R71: 53.3882427 | S71: 3A2g | T71: 67.2889199 | U71: 1Eg | V71: 84.3034345 | W71: 1A1g | X71: 104.672245
A72: 59 | B72: 35.3498871 | C72: 3T1g | D72: 0 | E72: 1T2g | F72: 15.2912562 | G72: 1Eg | H72: 15.4653758 | I72: 3T2g | J72: 33.1472777 | K72: 1A1g | L72: 34.2558815 | M72: 3T1g | N72: 45.9446682 | O72: 1T2g | P72: 50.3328702 | Q72: 1T1g | R72: 53.9870068 | S72: 3A2g | T72: 68.4971648 | U72: 1Eg | V72: 85.5086377 | W72: 1A1g | X72: 105.817454
A73: 60 | B73: 35.9593679 | C73: 3T1g | D73: 0 | E73: 1T2g | F73: 15.286728 | G73: 1Eg | H73: 15.4578713 | I73: 3T2g | J73: 33.746316 | K73: 1A1g | L73: 34.3064695 | M73: 3T1g | N73: 46.5332652 | O73: 1T2g | P73: 50.9259955 | Q73: 1T1g | R73: 54.5860451 | S73: 3A2g | T73: 69.705684 | U73: 1Eg | V73: 86.7142201 | W73: 1A1g | X73: 106.964945
A74: 61 | B74: 36.5688488 | C74: 3T1g | D74: 0 | E74: 1T2g | F74: 15.2822686 | G74: 1Eg | H74: 15.450535 | I74: 3T2g | J74: 34.3456208 | K74: 1A1g | L74: 34.3554063 | M74: 3T1g | N74: 47.1223939 | O74: 1T2g | P74: 51.5195835 | Q74: 1T1g | R74: 55.1853499 | S74: 3A2g | T74: 70.9144695 | U74: 1Eg | V74: 87.9201659 | W74: 1A1g | X74: 108.114617
A75: 62 | B75: 37.1783296 | C75: 3T1g | D75: 0 | E75: 1T2g | F75: 15.277877 | G75: 1Eg | H75: 15.44336 | I75: 1A1g | J75: 34.4027675 | K75: 3T2g | L75: 34.9451817 | M75: 3T1g | N75: 47.7120339 | O75: 1T2g | P75: 52.113614 | Q75: 1T1g | R75: 55.7849108 | S75: 3A2g | T75: 72.1235113 | U75: 1Eg | V75: 89.1264616 | W75: 1A1g | X75: 109.266376
A76: 63 | B76: 37.7878104 | C76: 3T1g | D76: 0 | E76: 1T2g | F76: 15.2735542 | G76: 1Eg | H76: 15.436342 | I76: 1A1g | J76: 34.448623 | K76: 3T2g | L76: 35.5449876 | M76: 3T1g | N76: 48.3021659 | O76: 1T2g | P76: 52.70807 | Q76: 1T1g | R76: 56.3847167 | S76: 3A2g | T76: 73.332798 | U76: 1Eg | V76: 90.3330926 | W76: 1A1g | X76: 110.420134
A77: 64 | B77: 38.3972912 | C77: 3T1g | D77: 0 | E77: 1T2g | F77: 15.269298 | G77: 1Eg | H77: 15.4294763 | I77: 1A1g | J77: 34.4930395 | K77: 3T2g | L77: 36.1450316 | M77: 3T1g | N77: 48.8927731 | O77: 1T2g | P77: 53.3029334 | Q77: 1T1g | R77: 56.9847607 | S77: 3A2g | T77: 74.5423228 | U77: 1Eg | V77: 91.5400451 | W77: 1A1g | X77: 111.575805
A78: 65 | B78: 39.006772 | C78: 3T1g | D78: 0 | E78: 1T2g | F78: 15.2651084 | G78: 1Eg | H78: 15.4227585 | I78: 1A1g | J78: 34.5360801 | K78: 3T2g | L78: 36.7453047 | M78: 3T1g | N78: 49.4838375 | O78: 1T2g | P78: 53.8981874 | Q78: 1T1g | R78: 57.5850339 | S78: 3A2g | T78: 75.7520767 | U78: 1Eg | V78: 92.7473081 | W78: 1A1g | X78: 112.73331
A79: 66 | B79: 39.6162528 | C79: 3T1g | D79: 0 | E79: 1T2g | F79: 15.2609853 | G79: 1Eg | H79: 15.4161851 | I79: 1A1g | J79: 34.5778047 | K79: 3T2g | L79: 37.345798 | M79: 3T1g | N79: 50.0753431 | O79: 1T2g | P79: 54.493816 | Q79: 1T1g | R79: 58.1855271 | S79: 3A2g | T79: 76.9620508 | U79: 1Eg | V79: 93.9548691 | W79: 1A1g | X79: 113.892573
A80: 67 | B80: 40.2257336 | C80: 3T1g | D80: 0 | E80: 1T2g | F80: 15.2569278 | G80: 1Eg | H80: 15.4097506 | I80: 1A1g | J80: 34.6182686 | K80: 3T2g | L80: 37.9465045 | M80: 3T1g | N80: 50.6672754 | O80: 1T2g | P80: 55.0898059 | Q80: 1T1g | R80: 58.7862336 | S80: 3A2g | T80: 78.1722381 | U80: 1Eg | V80: 95.1627167 | W80: 1A1g | X80: 115.053523
